fUST/lending_fUST_20250227
["ID","MTS","AMOUNT","RATE_DAILY","PERIOD"]
[354705070,1740631848154,-500.0,0.00046849,120]
[354705071,1740631848163,-690.68,0.00046849,120]
[354705072,1740631848173,-500.0,0.00046849,120]
[354705073,1740631848183,-2142.41,0.00046849,120]
[354705074,1740631848193,-500.0,0.00046849,120]
[354705075,1740631848202,-647.17,0.00046849,120]
[354705076,1740631848212,-1069.91,0.00046849,120]
[354705077,1740631848221,-696.71,0.00046849,120]
[354705078,1740631848231,-520.12,0.00046849,120]
[354705079,1740631848241,-763.57,0.00046849,120]
[354705080,1740631848251,-1837.23,0.00046849,120]
[354705081,1740631848260,-614.77432115,0.00046849,120]
[354705082,1740631848270,-500.0,0.00046849,15]
[354705083,1740631848280,-618.97,0.00046849,120]
[354705084,1740631848290,-500.0,0.00046849,120]
[354705085,1740631848300,-554.59,0.00046849,120]
[354705086,1740631848309,-500.0,0.00046849,120]
[354705087,1740631848320,-504.15,0.00046849,120]
[354705088,1740631848329,-500.78,0.00046849,120]
[354705089,1740631848339,-1124.12,0.00046849,120]
[354705090,1740631848352,-500.0,0.00046849,120]
[354705091,1740631848362,-500.0,0.00046849,120]
[354705092,1740631848372,-750.29,0.00046849,120]
[354705093,1740631848382,-500.0,0.00046849,120]
[354705094,1740631848391,-500.0,0.00046849,120]
[354705095,1740631848401,-2601.82,0.00046849,120]
[354705096,1740631848411,-752.24,0.00046849,120]
[354705097,1740631848420,-500.0,0.00046849,120]
[354705098,1740631848430,-1338.96,0.00046849,120]
[354705099,1740631848439,-500.0,0.00046849,120]
[354705100,1740631848449,-500.0,0.00046849,120]
[354705101,1740631848458,-634.71,0.00046849,120]
[354705102,1740631848468,-1128.96,0.00046849,120]
[354705103,1740631848478,-500.0,0.00046849,120]
[354705104,1740631848488,-500.0,0.00046849,120]
[354705105,1740631848498,-500.0,0.00046849,120]
[354705106,1740631848507,-920.16,0.00046849,120]
[354705107,1740631848517,-500.0,0.00046849,120]
[354705108,1740631848528,-500.0,0.00046849,120]
[354705109,1740631848538,-518.04,0.00046849,120]
[354705110,1740631848547,-500.0,0.00046849,120]
[354705111,1740631848557,-507.72383806,0.00046849,45]
[354705112,1740631848567,-990.67,0.00046849,120]
[354705113,1740631848576,-683.63,0.00046849,120]
[354705114,1740631848587,-500.0,0.00046849,120]
[354705115,1740631848596,-992.49,0.00046849,120]
[354705116,1740631848605,-581.14,0.00046849,120]
[354705117,1740631848614,-550.53,0.00046849,120]
[354705118,1740631848624,-6653.55,0.00046849,120]
[354705119,1740631848633,-500.0,0.00046849,120]
[354705120,1740631848643,-2893.76,0.00046849,120]
[354705121,1740631848652,-644.03,0.00046849,120]
[354705122,1740631848661,-200.0,0.00046849,7]
[354705123,1740631848671,-500.0,0.00046849,120]
[354705124,1740631848680,-500.0,0.00046849,120]
[354705125,1740631848689,-500.0,0.00046849,120]
[354705126,1740631848699,-554.1,0.00046849,120]
[354705127,1740631848708,-1812.66,0.00046849,120]
[354705128,1740631848717,-697.55,0.00046849,120]
[354705129,1740631848727,-2528.54,0.00046849,120]
[354705130,1740631848737,-2032.24,0.00046849,120]
[354705131,1740631848746,-698.46,0.00046849,120]
[354705132,1740631848755,-500.0,0.00046849,120]
[354705133,1740631848765,-1168.66,0.00046849,120]
[354705134,1740631848774,-500.0,0.00046849,120]
[354705135,1740631848783,-500.0,0.00046849,120]
[354705136,1740631848793,-28722.05,0.00046849,120]
[354705137,1740631848803,-500.0,0.00046849,120]
[354705138,1740631848811,-8721.89,0.00046849,120]
[354705139,1740631848821,-500.0,0.00046849,120]
[354705140,1740631848831,-743.63,0.00046849,120]
[354705141,1740631848840,-1034.61,0.00046849,120]
[354705142,1740631848851,-500.0,0.00046849,120]
[354705143,1740631848861,-500.0,0.00046849,120]
[354705144,1740631848870,-500.0,0.00046849,120]
[354705145,1740631848884,-2081.95,0.00046849,120]
[354705146,1740631848894,-615.53,0.00046849,30]
[354705147,1740631848904,-3294.81,0.00046849,120]
[354705148,1740631848914,-500.0,0.00046849,120]
[354705149,1740631848924,-500.0,0.00046849,120]
[354705150,1740631848934,-272.78170143,0.00046849,120]
[354705151,1740631848944,-506.74,0.00046849,120]
[354705152,1740631848953,-1300.34,0.00046849,120]
[354705153,1740631848963,-1298.99,0.00046849,120]
[354705154,1740631848973,-1872.7,0.00046849,120]
[354705155,1740631848983,-500.0,0.00046849,120]
[354705156,1740631848993,-4060.23,0.00046849,120]
[354705157,1740631849004,-500.0,0.00046849,120]
[354705158,1740631849015,-885.79,0.00046849,120]
[354705159,1740631849025,-10466.01,0.00046849,3]
[354705160,1740631849035,-802.79,0.00046849,120]
[354705161,1740631849044,-123192.13,0.00046849,7]
[354705162,1740631849055,-500.0,0.00046849,120]
[354705163,1740631849065,-1325.05,0.00046849,120]
[354705164,1740631849075,-624.17,0.00046849,120]
[354705165,1740631849084,-500.0,0.00046849,120]
[354705166,1740631849096,-4387.53,0.00046849,120]
[354705167,1740631849106,-2287.55,0.00046849,120]
[354705168,1740631849115,-1438.88,0.00046849,120]
[354705169,1740631849125,-508.34819184,0.00046849,120]
[354705170,1740631849135,-780.78,0.00046849,120]
[354705171,1740631849144,-5870.77,0.00046849,120]
[354705172,1740631849154,-500.0,0.00046849,120]
[354705173,1740631849164,-626.13,0.00046849,120]
[354705174,1740631849174,-500.0,0.00046849,120]
[354705175,1740631849184,-1558.65,0.00046849,120]
[354705176,1740631849194,-545.86,0.00046849,120]
[354705177,1740631849204,-1000.0,0.00046849,2]
[354705178,1740631849213,-500.0,0.00046849,120]
[354705179,1740631849223,-500.0,0.00046849,120]
[354705180,1740631849232,-500.0,0.00046849,120]
[354705181,1740631849242,-1354.49,0.00046849,120]
[354705182,1740631849252,-500.0,0.00046849,120]
[354705183,1740631849262,-1575.91,0.00046849,120]
[354705184,1740631849271,-652.96,0.00046849,120]
[354705185,1740631849281,-1743.51,0.00046849,120]
[354705186,1740631849291,-500.0,0.00046849,120]
[354705187,1740631849300,-648.8,0.00046849,120]
[354705188,1740631849310,-792.42,0.00046849,120]
[354705189,1740631849320,-500.0,0.00046849,120]
[354705190,1740631849329,-5378.13,0.00046849,120]
[354705191,1740631849338,-500.0,0.00046849,120]
[354705192,1740631849348,-908.87,0.00046849,120]
[354705193,1740631849359,-500.0,0.00046849,120]
[354705194,1740631849368,-638.24,0.00046849,120]
[354705195,1740631849378,-3375.07,0.00046849,120]
[354705196,1740631849388,-1314.45,0.00046849,120]
[354705197,1740631849398,-199.00936969,0.00046849,120]
[354705198,1740631849408,-500.0,0.00046849,120]
[354705199,1740631849418,-500.0,0.00046849,120]
[354705200,1740631849427,-500.0,0.00046849,120]
[354705201,1740631849437,-500.0,0.00046849,120]
[354705202,1740631849447,-1277.65,0.00046849,120]
[354705203,1740631849456,-2460.18,0.00046849,120]
[354705204,1740631849466,-754.72,0.00046849,120]
[354705205,1740631849475,-500.0,0.00046849,120]
[354705206,1740631849484,-500.0,0.00046849,120]
[354705207,1740631849494,-500.0,0.00046849,120]
[354705208,1740631849503,-500.0,0.00046849,120]
[354705209,1740631849513,-1867.72,0.00046849,120]
[354705210,1740631849522,-1015.09,0.00046849,120]
[354705211,1740631849532,-500.0,0.00046849,21]
[354705212,1740631849542,-3471.35,0.00046849,120]
[354705213,1740631849551,-895.47,0.00046849,120]
[354705214,1740631849560,-758.36,0.00046849,120]
[354705215,1740631849569,-7919.65,0.00046849,120]
[354705216,1740631849579,-500.0,0.00046849,120]
[354705217,1740631849588,-2764.98,0.00046849,120]
[354705218,1740631849598,-660.37,0.00046849,120]
[354705219,1740631849607,-500.0,0.00046849,120]
[354705220,1740631849617,-500.0,0.00046849,120]
[354705221,1740631849626,-1357.46,0.00046849,120]
[354705222,1740631849637,-761.14,0.00046849,120]
[354705223,1740631849646,-748.34,0.00046849,120]
[354705224,1740631849655,-32150.02,0.00046849,120]
[354705225,1740631849664,-1630.22,0.00046849,120]
[354705226,1740631849673,-792.7,0.00046849,120]
[354705227,1740631849683,-500.0,0.00046849,120]
[354705228,1740631849692,-882.24,0.00046849,120]
[354705229,1740631849701,-500.0,0.00046849,120]
[354705230,1740631849710,-500.0,0.00046849,120]
[354705231,1740631849719,-518.34,0.00046849,120]
[354705232,1740631849729,-3195.85,0.00046849,120]
[354705233,1740631849738,-500.0,0.00046849,120]
[354705234,1740631849747,-652.02,0.00046849,120]
[354705235,1740631849757,-674.27,0.00046849,120]
[354705236,1740631849766,-500.0,0.00046849,120]
[354705237,1740631849775,-500.0,0.00046849,120]
[354705238,1740631849784,-3156.82,0.00046849,120]
[354705239,1740631849794,-500.0,0.00046849,120]
[354705240,1740631849805,-500.0,0.00046849,120]
[354705241,1740631849816,-500.0,0.00046849,120]
[354705242,1740631849826,-8784.95859432,0.00046849,6]
[354705527,1740633038300,-400.0,0.00039274,5]
[354705528,1740633038310,-10000.0,0.00039275,2]
[354705529,1740633038320,-161.8628253,0.00040877,2]
[354705530,1740633038330,-963.2214437,0.00041,2]
[354705531,1740633038340,-4928.6000344,0.00041148,2]
[354705532,1740633038349,-160.0,0.00041924,5]
[354705533,1740633038359,-187.5580533,0.00044649,120]
[354705534,1740633038368,-571.51222106,0.00044749,2]
[354705535,1740633038379,-172.0,0.00045,90]
[354705536,1740633038388,-41626.72,0.00045,120]
[354705537,1740633038397,-317.0,0.000458,120]
[354705538,1740633038407,-171.24022185,0.00046473,28]
[354705539,1740633038421,-500.0,0.00046573,7]
[354705541,1740633038430,-500.0,0.00046573,10]
[354705542,1740633038439,-5000.0,0.00046573,120]
[354705543,1740633038448,-157.242,0.00046573,77]
[354705544,1740633038459,-3000.0,0.00046573,120]
[354705545,1740633038468,-19801.02,0.00046574,120]
[354705546,1740633038477,-500.0,0.00046575,120]
[354705547,1740633038486,-899.41,0.00046575,120]
[354705548,1740633038497,-500.0,0.00046575,120]
[354705549,1740633038506,-500.0,0.00046575,120]
[354705550,1740633038515,-500.0,0.00046575,120]
[354705551,1740633038524,-500.0,0.00046575,120]
[354705552,1740633038533,-500.0,0.00046575,120]
[354705553,1740633038542,-250.0215487,0.00046575,120]
[354705554,1740633038551,-500.0,0.00046575,120]
[354705555,1740633038561,-500.0,0.00046575,120]
[354705556,1740633038571,-500.0,0.00046575,120]
[354705557,1740633038580,-505.1,0.00046575,120]
[354705558,1740633038589,-500.0,0.00046575,120]
[354705559,1740633038598,-502.12485238,0.00046575,120]
[354705560,1740633038608,-500.0,0.00046575,120]
[354705561,1740633038617,-500.0,0.00046575,120]
[354705562,1740633038628,-500.0,0.00046575,120]
[354705563,1740633038637,-500.0,0.00046575,120]
[354705564,1740633038646,-1156.21,0.00046575,120]
[354705565,1740633038656,-300.0,0.00046575,120]
[354705566,1740633038665,-508.86,0.00046575,120]
[354705567,1740633038674,-500.0,0.00046575,120]
[354705568,1740633038684,-500.0,0.00046575,120]
[354705569,1740633038693,-500.0,0.00046575,120]
[354705570,1740633038702,-523.68,0.00046575,120]
[354705571,1740633038712,-500.0,0.00046575,120]
[354705572,1740633038721,-500.0,0.00046575,120]
[354705573,1740633038730,-500.0,0.00046575,120]
[354705574,1740633038739,-258.9010757,0.00046575,120]
[354705575,1740633038749,-1000.0,0.00046575,120]
[354705576,1740633038759,-500.0,0.00046575,120]
[354705577,1740633038768,-500.0,0.00046575,120]
[354705578,1740633038778,-500.0,0.00046575,120]
[354705579,1740633038787,-521.63058214,0.00046575,120]
[354705580,1740633038797,-500.0,0.00046575,14]
[354705581,1740633038806,-611.21395971,0.00046575,120]
[354705582,1740633038816,-500.0,0.00046575,120]
[354705583,1740633038825,-500.0,0.00046575,120]
[354705584,1740633038834,-500.0,0.00046575,30]
[354705585,1740633038843,-500.0,0.00046575,120]
[354705586,1740633038852,-500.0,0.00046575,120]
[354705587,1740633038861,-510.58315203,0.00046575,120]
[354705588,1740633038871,-500.0,0.00046575,120]
[354705589,1740633038880,-500.0,0.00046575,120]
[354705590,1740633038890,-500.0,0.00046575,120]
[354705591,1740633038899,-500.0,0.00046575,120]
[354705592,1740633038909,-546.72239541,0.00046575,120]
[354705593,1740633038918,-500.0,0.00046575,120]
[354705594,1740633038927,-500.0,0.00046575,120]
[354705595,1740633038936,-500.0,0.00046575,120]
[354705596,1740633038945,-500.0,0.00046575,120]
[354705597,1740633038954,-500.0,0.00046575,120]
[354705598,1740633038964,-500.0,0.00046575,120]
[354705599,1740633038973,-500.0,0.00046575,120]
[354705600,1740633038982,-667.27,0.00046575,120]
[354705601,1740633038991,-500.0,0.00046575,120]
[354705602,1740633039000,-500.0,0.00046575,120]
[354705603,1740633039009,-500.0,0.00046575,120]
[354705604,1740633039019,-529.2,0.00046575,120]
[354705605,1740633039027,-500.0,0.00046575,120]
[354705606,1740633039042,-500.0,0.00046575,120]
[354705607,1740633039051,-500.0,0.00046575,120]
[354705608,1740633039060,-500.0,0.00046575,120]
[354705609,1740633039069,-590.25,0.00046575,120]
[354705610,1740633039078,-500.0,0.00046575,120]
[354705611,1740633039087,-500.0,0.00046575,120]
[354705612,1740633039096,-500.0,0.00046575,120]
[354705613,1740633039105,-500.0,0.00046575,120]
[354705614,1740633039114,-478.81721782,0.00046575,120]
[354705615,1740633039123,-500.0,0.00046575,120]
[354705616,1740633039132,-500.0,0.00046575,120]
[354705617,1740633039141,-661.97,0.00046575,120]
[354705618,1740633039150,-632.29,0.00046575,120]
[354705619,1740633039159,-500.0,0.00046575,120]
[354705620,1740633039169,-500.0,0.00046575,120]
[354705621,1740633039178,-500.0,0.00046575,30]
[354705622,1740633039187,-614.83,0.00046575,120]
[354705623,1740633039197,-500.0,0.00046575,120]
[354705624,1740633039206,-530.0725977,0.00046575,120]
[354705625,1740633039215,-500.0,0.00046575,120]
[354705626,1740633039226,-500.0,0.00046575,120]
[354705627,1740633039235,-500.0,0.00046575,120]
[354705628,1740633039244,-594.89,0.00046575,120]
[354705629,1740633039253,-534.99,0.00046575,120]
[354705630,1740633039262,-607.01,0.00046575,120]
[354705631,1740633039271,-2478.05,0.00046575,120]
[354705632,1740633039280,-500.0,0.00046575,120]
[354705633,1740633039289,-946.66,0.00046575,120]
[354705634,1740633039298,-2490.76,0.00046575,120]
[354705635,1740633039307,-735.28,0.00046575,120]
[354705636,1740633039316,-1273.81,0.00046575,120]
[354705637,1740633039325,-500.0,0.00046575,120]
[354705638,1740633039335,-500.0,0.00046575,120]
[354705639,1740633039344,-1506.71,0.00046575,120]
[354705640,1740633039353,-503.18409847,0.00046575,120]
[354705641,1740633039363,-500.0,0.00046575,120]
[354705642,1740633039372,-500.0,0.00046575,120]
[354705643,1740633039382,-500.0,0.00046575,120]
[354705644,1740633039391,-500.0,0.00046575,120]
[354705645,1740633039400,-2248.89,0.00046575,120]
[354705646,1740633039410,-500.0,0.00046575,120]
[354705647,1740633039422,-500.0,0.00046575,120]
[354705648,1740633039431,-500.0,0.00046575,120]
[354705649,1740633039441,-532.71,0.00046575,120]
[354705650,1740633039450,-500.0,0.00046575,120]
[354705651,1740633039459,-1343.72,0.00046575,120]
[354705652,1740633039468,-765.88,0.00046575,120]
[354705653,1740633039477,-1498.92,0.00046575,120]
[354705654,1740633039487,-500.0,0.00046575,120]
[354705655,1740633039498,-500.0,0.00046575,120]
[354705656,1740633039508,-500.0,0.00046575,120]
[354705657,1740633039516,-500.0,0.00046575,120]
[354705658,1740633039526,-500.0,0.00046575,120]
[354705659,1740633039535,-500.0,0.00046575,120]
[354705660,1740633039544,-500.0,0.00046575,120]
[354705661,1740633039553,-200.0,0.00046575,7]
[354705662,1740633039562,-1234.81,0.00046575,120]
[354705663,1740633039572,-500.0,0.00046575,120]
[354705664,1740633039581,-500.0,0.00046575,120]
[354705665,1740633039591,-559.65,0.00046575,120]
[354705666,1740633039601,-677.93,0.00046575,120]
[354705667,1740633039610,-500.0,0.00046575,120]
[354705668,1740633039619,-1008.2,0.00046575,120]
[354705669,1740633039630,-500.0,0.00046575,120]
[354705670,1740633039640,-500.0,0.00046575,120]
[354705671,1740633039649,-535.37,0.00046575,120]
[354705672,1740633039658,-500.0,0.00046575,120]
[354705673,1740633039667,-500.0,0.00046575,120]
[354705674,1740633039676,-528.3,0.00046575,120]
[354705675,1740633039685,-500.0,0.00046575,120]
[354705676,1740633039695,-500.0,0.00046575,120]
[354705677,1740633039704,-500.0,0.00046575,120]
[354705678,1740633039713,-500.0,0.00046575,120]
[354705679,1740633039722,-1980.39,0.00046575,120]
[354705680,1740633039731,-500.0,0.00046575,120]
[354705681,1740633039741,-2668.38,0.00046575,120]
[354705682,1740633039750,-1359.37,0.00046575,120]
[354705683,1740633039759,-500.0,0.00046575,120]
[354705684,1740633039768,-1479.3,0.00046575,120]
[354705685,1740633039777,-500.0,0.00046575,120]
[354705686,1740633039786,-1168.95,0.00046575,120]
[354705687,1740633039795,-500.0,0.00046575,120]
[354705688,1740633039806,-500.0,0.00046575,120]
[354705689,1740633039815,-544.09,0.00046575,120]
[354705690,1740633039824,-1381.08,0.00046575,120]
[354705691,1740633039833,-500.0,0.00046575,120]
[354705693,1740633039842,-525.6,0.00046575,120]
[354705694,1740633039852,-500.0,0.00046575,120]
[354705695,1740633039861,-500.0,0.00046575,120]
[354705696,1740633039870,-762.7,0.00046575,120]
[354705697,1740633039880,-706.14,0.00046575,120]
[354705698,1740633039889,-500.0,0.00046575,120]
[354705699,1740633039899,-174.91150437,0.00046575,120]
[354705700,1740633039908,-500.0,0.00046575,120]
[354705701,1740633039917,-501.72336212,0.00046575,120]
[354705702,1740633039927,-1009.79,0.00046575,120]
[354705703,1740633039936,-500.0,0.00046575,120]
[354705704,1740633039945,-500.0,0.00046575,120]
[354705705,1740633039954,-500.0,0.00046575,120]
[354705706,1740633039963,-500.0,0.00046575,120]
[354705707,1740633039972,-500.0,0.00046575,30]
[354705708,1740633039981,-500.0,0.00046575,120]
[354705709,1740633039990,-500.0,0.00046575,120]
[354705710,1740633039999,-500.0,0.00046575,120]
[354705711,1740633040008,-1216.5,0.00046575,120]
[354705712,1740633040018,-1315.55,0.00046575,120]
[354705713,1740633040027,-1318.97,0.00046575,120]
[354705714,1740633040036,-687.21,0.00046575,120]
[354705715,1740633040045,-500.0,0.00046575,120]
[354705716,1740633040054,-500.0,0.00046575,120]
[354705717,1740633040063,-500.0,0.00046575,120]
[354705718,1740633040072,-500.0,0.00046575,120]
[354705719,1740633040081,-572.68620574,0.00046575,120]
[354705720,1740633040090,-655.43,0.00046575,120]
[354705721,1740633040100,-608.2765682,0.00046575,120]
[354705722,1740633040109,-500.0,0.00046575,120]
[354705723,1740633040118,-500.0,0.00046575,120]
[354705724,1740633040128,-500.0,0.00046575,120]
[354705725,1740633040137,-657.12,0.00046575,120]
[354705726,1740633040146,-1127.89,0.00046575,120]
[354705727,1740633040155,-594.41,0.00046575,120]
[354705728,1740633040164,-1013.98,0.00046575,120]
[354705729,1740633040173,-2292.06,0.00046575,120]
[354705730,1740633040182,-726.38,0.00046575,120]
[354705731,1740633040191,-500.0,0.00046575,120]
[354705732,1740633040200,-545.34,0.00046575,120]
[354705733,1740633040209,-1734.3,0.00046575,120]
[354705734,1740633040219,-500.0,0.00046575,120]
[354705735,1740633040227,-500.0,0.00046575,120]
[354705736,1740633040236,-829.3,0.00046575,120]
[354705737,1740633040246,-1171.18,0.00046575,120]
[354705738,1740633040255,-2007.03,0.00046575,120]
[354705739,1740633040264,-500.0,0.00046575,120]
[354705740,1740633040273,-592.64,0.00046575,120]
[354705741,1740633040282,-500.0,0.00046575,15]
[354705742,1740633040291,-725.62,0.00046575,120]
[354705743,1740633040301,-695.16,0.00046575,120]
[354705744,1740633040310,-360.24107478,0.00046575,120]
[354705745,1740633040319,-500.0,0.00046575,120]
[354705746,1740633040328,-500.0,0.00046575,120]
[354705747,1740633040338,-500.0,0.00046575,120]
[354705748,1740633040346,-500.0,0.00046575,120]
[354705749,1740633040355,-930.5,0.00046575,120]
[354705750,1740633040364,-612.01130235,0.00046575,120]
[354705751,1740633040373,-500.0,0.00046575,120]
[354705752,1740633040383,-500.0,0.00046575,120]
[354705754,1740633040392,-500.0,0.00046575,120]
[354705756,1740633040401,-500.0,0.00046575,120]
[354705758,1740633040411,-618.08,0.00046575,120]
[354705759,1740633040423,-500.0,0.00046575,120]
[354705760,1740633040433,-1066.42,0.00046575,120]
[354705761,1740633040442,-500.0,0.00046575,120]
[354705762,1740633040453,-500.0,0.00046575,120]
[354705763,1740633040463,-710.51,0.00046575,120]
[354705764,1740633040472,-151.0,0.00046575,120]
[354705765,1740633040481,-500.0,0.00046575,120]
[354705766,1740633040492,-2385.0,0.00046575,120]
[354705767,1740633040501,-712.13,0.00046575,120]
[354705768,1740633040510,-500.0,0.00046575,120]
[354705769,1740633040520,-623.48,0.00046575,120]
[354705770,1740633040529,-1071.56,0.00046575,120]
[354705771,1740633040538,-250.0,0.00046575,120]
[354705772,1740633040547,-500.0,0.00046575,120]
[354705773,1740633040556,-500.0,0.00046575,120]
[354705774,1740633040565,-500.0,0.00046575,120]
[354705775,1740633040575,-921.25,0.00046575,120]
[354705777,1740633040585,-500.0,0.00046575,120]
[354705779,1740633040594,-588.56,0.00046575,120]
[354705781,1740633040603,-500.0,0.00046575,120]
[354705783,1740633040612,-500.0,0.00046575,120]
[354705784,1740633040621,-500.0,0.00046575,120]
[354705785,1740633040630,-500.0,0.00046575,120]
[354705786,1740633040639,-500.0,0.00046575,120]
[354705787,1740633040648,-500.0,0.00046575,120]
[354705788,1740633040657,-500.0,0.00046575,120]
[354705789,1740633040667,-500.0,0.00046575,120]
[354705790,1740633040677,-647.5,0.00046575,120]
[354705791,1740633040686,-436.68486102,0.00046575,120]
[354705792,1740633040696,-590.36,0.00046575,120]
[354705793,1740633040705,-500.0,0.00046575,120]
[354705794,1740633040715,-9383.38,0.00046575,120]
[354705795,1740633040724,-660.25,0.00046575,120]
[354705796,1740633040734,-500.0,0.00046575,120]
[354705797,1740633040743,-586.5,0.00046575,120]
[354705798,1740633040753,-500.0,0.00046575,120]
[354705799,1740633040764,-2346.11,0.00046575,120]
[354705800,1740633040773,-500.0,0.00046575,120]
[354705801,1740633040782,-500.0,0.00046575,120]
[354705802,1740633040792,-1654.66,0.00046575,120]
[354705803,1740633040801,-608.28,0.00046575,120]
[354705804,1740633040810,-500.0,0.00046575,120]
[354705805,1740633040819,-500.0,0.00046575,120]
[354705806,1740633040828,-500.0,0.00046575,120]
[354705807,1740633040838,-500.0,0.00046575,120]
[354705808,1740633040847,-2652.62,0.00046575,120]
[354705809,1740633040856,-662.86,0.00046575,120]
[354705810,1740633040866,-528.76,0.00046575,120]
[354705811,1740633040875,-681.66,0.00046575,120]
[354705812,1740633040884,-1106.82,0.00046575,120]
[354705813,1740633040893,-500.0,0.00046575,120]
[354705814,1740633040903,-1661.61,0.00046575,120]
[354705815,1740633040913,-500.0,0.00046575,120]
[354705816,1740633040922,-500.0,0.00046575,120]
[354705817,1740633040932,-585.07,0.00046575,30]
[354705818,1740633040941,-1116.89,0.00046575,120]
[354705819,1740633040951,-3063.8,0.00046575,120]
[354705820,1740633040960,-582.50833705,0.00046575,120]
[354705821,1740633040969,-509.47972194,0.00046575,120]
[354705822,1740633040978,-500.0,0.00046575,120]
[354705823,1740633040987,-500.0,0.00046575,120]
[354705824,1740633040996,-1919.56,0.00046575,120]
[354705825,1740633041006,-500.0,0.00046575,120]
[354705826,1740633041015,-1218.47,0.00046575,120]
[354705827,1740633041023,-948.39,0.00046575,120]
[354705828,1740633041033,-1212.81,0.00046575,120]
[354705829,1740633041042,-7995.07,0.00046575,120]
[354705830,1740633041051,-500.0,0.00046575,120]
[354705831,1740633041060,-3782.44,0.00046575,120]
[354705832,1740633041069,-26328.55,0.00046575,120]
[354705833,1740633041078,-539.67,0.00046575,120]
[354705834,1740633041087,-500.0,0.00046575,120]
[354705835,1740633041096,-500.0,0.00046575,120]
[354705836,1740633041105,-9789.87,0.00046575,3]
[354705837,1740633041114,-2073.98,0.00046575,120]
[354705838,1740633041123,-500.0,0.00046575,120]
[354705839,1740633041132,-500.0,0.00046575,120]
[354705840,1740633041141,-500.0,0.00046575,120]
[354705841,1740633041151,-1128.82,0.00046575,120]
[354705842,1740633041160,-500.0,0.00046575,120]
[354705843,1740633041169,-500.0,0.00046575,120]
[354705844,1740633041178,-500.0,0.00046575,120]
[354705845,1740633041187,-500.0,0.00046575,120]
[354705846,1740633041196,-500.0,0.00046575,120]
[354705847,1740633041205,-733.06,0.00046575,120]
[354705848,1740633041214,-500.0,0.00046575,120]
[354705849,1740633041223,-4064.52,0.00046575,120]
[354705850,1740633041232,-1770.06,0.00046575,120]
[354705851,1740633041241,-500.0,0.00046575,120]
[354705852,1740633041250,-5683.29,0.00046575,120]
[354705853,1740633041259,-500.0,0.00046575,120]
[354705854,1740633041268,-500.0,0.00046575,120]
[354705855,1740633041277,-500.0,0.00046575,120]
[354705856,1740633041286,-500.0,0.00046575,120]
[354705857,1740633041295,-500.0,0.00046575,120]
[354705858,1740633041304,-521.21,0.00046575,120]
[354705859,1740633041313,-1347.84,0.00046575,120]
[354705860,1740633041322,-1000.0,0.00046575,2]
[354705861,1740633041331,-115917.67,0.00046575,7]
[354705862,1740633041340,-701.98,0.00046575,120]